Cogmind - Beta 11 X5 @@@ ROGUE MODE // 2021.07.07 @ 21:47:27 Player: AlmondRoll Result: Destroyed by DAS Turret with DAS Cannon Performance ------------- Evolutions (0) 0 Regions Visited (3) 600 Robots Destroyed (28) 140 Value Destroyed (612) 612 Prototype IDs (23) 460 Alien Tech Used (0) 0 Bonus (267) 267 TOTAL SCORE: 2079 Bonus ------- Aligned with FarCom 300 Friendly Fire -33 Cogmind --------- Core Integrity 0/250 Matter 295/300 Energy 125/125 System Corruption 0% Temperature Cool (0) Movement Core (3500) Ox69 Location -10/Exiles Parts ------- > --- POWER (1) -------- Light Ion Engine > --- PROPULSION (2) --- (None) > --- UTILITY (2) ------ Humpback > --- WEAPON (2) ------- Medium Laser Particle Cannon > --- INVENTORY (35) --- Potential Leg Potential Leg Improved Heat Sink Disposable Heat Sink Disposable Heat Sink Disposable Heat Sink Disposable Heat Sink Medium Storage Unit High-capacity Storage Unit Humpback Humpback Superbattery (1500) Signal Interpreter Hacking Suite Medium Laser Medium Laser Particle Cannon Particle Cannon Particle Cannon Light Assault Rifle Deploy-a-Sentry Deploy-a-Sentry Deploy-a-Sentry Peak State ------------ > --- POWER ------------ Light Ion Engine > --- PROPULSION ------- Wheel > --- UTILITY ---------- High-capacity Storage Unit Superbattery > --- WEAPON ----------- Medium Laser Particle Cannon > --- INVENTORY -------- Improved Heat Sink Disposable Heat Sink Disposable Heat Sink Disposable Heat Sink Signal Interpreter Hacking Suite EM Pulse Gun EM Pulse Gun Medium Laser Medium Laser Particle Cannon Particle Cannon Particle Cannon Light Assault Rifle [Rating: 18] Favorites ----------- Power Light Ion Engine Engine Light Ion Engine Propulsion Wheel Leg Aluminum Leg Wheel Wheel Utility High-capacity Storage Unit Device Disposable Heat Sink Storage High-capacity Storage Unit Weapon Medium Laser Energy Gun Medium Laser Energy Cannon Particle Cannon Ballistic Gun Assault Rifle Build | -11 -10 -10 -10 ------- Run | Scr Mat Min Exi Slots Evolved . | . . . . Power . | . . . . Propulsion . | . . . . Utility . | . . . . Weapon . | . . . . Parts Attached 27 | 2 17 5 3 Power 2 | . 1 1 . Engine 2 | . 1 1 . Core . | . . . . Reactor . | . . . . Propulsion 9 | 2 5 2 . Treads . | . . . . Leg 2 | . 2 . . Wheel 7 | 2 3 2 . Hover . | . . . . Flight . | . . . . Utility 6 | . 3 . 3 Device 3 | . 2 . 1 Storage 3 | . 1 . 2 Processor . | . . . . Hackware . | . . . . Protection . | . . . . Artifact . | . . . . Weapon 10 | . 8 2 . Energy Gun 6 | . 5 1 . Energy Cannon 1 | . . 1 . Ballistic Gun 3 | . 3 . . Ballistic Cannon . | . . . . Launcher . | . . . . Special Weapon . | . . . . Impact Weapon . | . . . . Slashing Weapon . | . . . . Piercing Weapon . | . . . . Special Melee Weapon . | . . . . Unidentified Prototypes 1 | . . . 1 Parts Lost 11 | . 4 6 1 Power 2 | . 1 1 . Propulsion 4 | . . 3 1 Utility 1 | . 1 . . Weapon 4 | . 2 2 . Highest Loss Streak 5 | . 2 5 1 Average Slot Usage (%) 84 | . 89 86 78 Engine 13 | . 13 14 14 Leg 4 | . 10 . . Wheel 15 | . 17 15 13 Device 7 | . 4 14 8 Storage 13 | . 14 14 13 Energy Gun 16 | . 19 14 14 Energy Cannon 7 | . . 13 14 Ballistic Gun 3 | . 7 . . Naked Turns . | . . . . Heaviest Build 209 | 12 48 50 209 Greatest Support 32 | 20 32 20 10 Greatest Overweight (x) 69 | . 2 4 69 Average Overweight (x) 3 | . 1 3 6 Largest Inventory Capacity 35 | 8 20 20 35 Average Capacity 21 | 8 19 20 25 Most Carried 25 | 8 20 17 25 Average Carried 16 | 6 15 13 18 Final Capacity 35 | 8 20 20 35 Final Carried 25 | 7 17 14 25 Class Distribution -------------------- 76% | Mutant 13% | Hauler-Mutant 9% | Scavenger-Mutant Dominant Class ---------------- Mutant | -10/Materials Mutant | -10/Mines Mutant | -10/Exiles Resources | -11 -10 -10 -10 ----------- Run | Scr Mat Min Exi Matter Collected 520 | 220 235 45 20 Remotely . | . . . . Salvage Created 1011 | 129 679 203 . Parts 54 | 9 37 8 . Haulers Intercepted 1 | . 1 . . Recyclers Shooed 1 | . . 1 . Parts Field Recycled . | . . . . Retrieved Matter . | . . . . Parts Self-Destructed . | . . . . Prevented . | . . . . Kills | -11 -10 -10 -10 ------- Run | Scr Mat Min Exi Combat Hostiles Destroyed 15 | . 11 4 . Guns 11 | . 10 1 . Cannons 3 | . . 3 . Classes Destroyed 9 | 2 6 1 . Worker 1 | . 1 . . Builder 1 | . 1 . . Tunneler 3 | 1 . 2 . Hauler 1 | . 1 . . Recycler 3 | 1 1 1 . Operator 2 | . 2 . . Watcher 2 | . 2 . . Swarmer 2 | . . 2 . Grunt 13 | . 11 2 . Best Kill Streak 5 | 2 5 2 . Combat Bots Only 3 | . 3 2 . Max Kills in Single Turn 1 | 1 1 1 . Gunslinging . | . . . . Exploded . | . . . . Melee . | . . . . Uniques/NPCs Destroyed . | . . . . Combat | -11 -10 -10 -10 -------- Run | Scr Mat Min Exi Damage Taken 1228 | . 578 363 287 Core 275 | . 155 56 64 Absorbed by Shields . | . . . . Core Remaining (%) 100 | 100 . . . Volleys Fired 80 | 3 55 21 1 Largest 2 | 2 2 2 2 Hottest 118 | 90 100 118 118 Shots Fired 156 | 6 109 39 2 Gun 139 | 6 109 23 1 Cannon 17 | . . 16 1 Launcher . | . . . . Special . | . . . . Kinetic 35 | . 35 . . Thermal 118 | 3 74 39 2 Explosive . | . . . . Electromagnetic 3 | 3 . . . Robot Hit Streak 10 | 2 10 4 . Robot Miss Streak 4 | 1 4 4 2 Penetration Max . | . . . . Secondary Targets 1 | . 1 . . Max Gunslinging Chain 1 | . 1 . . Shots Hit Robots 96 | 4 68 24 . Core Hits 43 | 2 33 8 . Critical Kills 1 | . . 1 . Critical Parts Destroyed . | . . . . Critical Strikes 3 | . 2 1 . Burn 2 | . 2 . . Meltdown 1 | . . 1 . Melee Attacks . | . . . . Impact . | . . . . Slashing . | . . . . Piercing . | . . . . Sneak Attacks . | . . . . Combat Hostiles . | . . . . Follow-up Attacks . | . . . . Damage Inflicted 1404 | 56 880 435 33 Guns 1137 | 56 880 188 13 Cannons 267 | . . 247 20 Explosions . | . . . . Melee . | . . . . Ramming . | . . . . Kinetic 297 | . 297 . . Thermal 1064 | 13 583 435 33 Explosive . | . . . . Electromagnetic 43 | 43 . . . Impact . | . . . . Slashing . | . . . . Piercing . | . . . . Highest Corruption . | . . . . Average Corruption . | . . . . Corruption Purged . | . . . . Overload Shots . | . . . . Overflow Damage 3 | . . 3 . Projectiles 3 | . . 3 . Explosions . | . . . . Melee . | . . . . Knockbacks . | . . . . Impact . | . . . . Kinetic . | . . . . Secondary . | . . . . Self-Inflicted Damage . | . . . . Shots . | . . . . Rammed . | . . . . Targets Rammed 1 | . 1 . . Kicked 1 | . 1 . . Crushed . | . . . . Highest Temperature 269 | 60 269 198 57 Average Temperature 76 | 28 72 93 33 Received Heat Transfer 387 | . 321 66 . Effects 1 | . 1 . . Energy Bleed 1 | . 1 . . Siege Activations . | . . . . Robots Corrupted . | . . . . Combat Hostiles . | . . . . Parts Fried . | . . . . Impact Corruptions . | . . . . Robots Melted 2 | . 1 1 . Combat Hostiles 1 | . 1 . . Parts Melted 4 | . . 4 . Heat Transferred 2960 | 37 1850 999 74 Parts Sabotaged . | . . . . Parts Stolen . | . . . . Parts Stripped . | . . . . Power Chain Reactions . | . . . . Missiles Intercepted . | . . . . Alert | -11 -10 -10 -10 ------- Run | Scr Mat Min Exi Peak Influence 234 | 10 234 105 . Initial 45 | . 6 45 . Average 83 | 5 89 78 . Maximum Alert Level 1 | . 1 . . Low Security (%) 88 | 100 84 100 . Level 1 11 | . 15 . . Level 2 . | . . . . Level 3 . | . . . . Level 4 . | . . . . Level 5 . | . . . . High Security . | . . . . Max Security . | . . . . Squads Dispatched 3 | . 3 . . Investigation 1 | . 1 . . Extermination . | . . . . Reinforcement 2 | . 2 . . Assault . | . . . . Garrison . | . . . . Intercept . | . . . . Construction Impeded . | . . . . Haulers Reinforced . | . . . . Cargo Convoy Interrupts . | . . . . Stealth | -11 -10 -10 -10 --------- Run | Scr Mat Min Exi Distress Signals . | . . . . Communications Jammed . | . . . . Distress Signals . | . . . . Times Spotted 29 | . 17 5 7 Peak Tracking Total 12 | . 4 3 12 Tactical Retreats 1 | . . . 1 Traps | -11 -10 -10 -10 ------- Run | Scr Mat Min Exi Traps Triggered 4 | . 4 . . Indirectly . | . . . . Trap Hack Attempts . | . . . . Triggered . | . . . . Disarmed . | . . . . Reprogrammed . | . . . . Reused . | . . . . Traps Extracted . | . . . . Installed . | . . . . Triggered . | . . . . Machines | -11 -10 -10 -10 ---------- Run | Scr Mat Min Exi Machines Disabled . | . . . . Max in Single Turn . | . . . . Machines Sabotaged . | . . . . Garrisons Compromised . | . . . . Overloaded Fab Kills . | . . . . Fab Network Shutdowns . | . . . . Hacking | -11 -10 -10 -10 --------- Run | Scr Mat Min Exi Machines Accessed 4 | . 2 . 2 Terminals 2 | . 2 . . Fabricators . | . . . . Repair Stations . | . . . . Recycling Units . | . . . . Scanalyzers . | . . . . Garrison Access . | . . . . Total Hacks 6 | . 4 . 2 Successful 5 | . 3 . 2 Failed 1 | . 1 . . Catastrophic . | . . . . Database Lockouts . | . . . . Manual 4 | . 3 . 1 Terminals 4 | . 4 . . Fabricators . | . . . . Repair Stations . | . . . . Recycling Units . | . . . . Scanalyzers . | . . . . Garrison Access . | . . . . Terminal Hacks 3 | . 1 . 2 Record 1 | . . . 1 Alert Level 1 | . 1 . . EX-Prototype ID Bank 1 | . . . 1 Fabricator Hacks . | . . . . Repair Station Hacks . | . . . . Recycling Unit Hacks . | . . . . Scanalyzer . | . . . . Garrison Access Hacks . | . . . . Unauthorized Hacks 2 | . 2 . . Terminals 2 | . 2 . . Botnet 1 | . 1 . . Operators 1 | . 1 . . Fabricators . | . . . . Repair Stations . | . . . . Recycling Units . | . . . . Scanalyzers . | . . . . Garrison Access . | . . . . Data Cores Recovered . | . . . . Used . | . . . . Hacking Detections 2 | . 2 . . Full Trace Events . | . . . . Feedback Events . | . . . . Feedback Blocked . | . . . . Robot Schematics Acquired . | . . . . Robots Built . | . . . . Matter . | . . . . Time . | . . . . Total Robot Build Rating . | . . . . Part Schematics Acquired . | . . . . Parts Built . | . . . . Matter . | . . . . Time . | . . . . Total Part Build Rating . | . . . . Parts Repaired . | . . . . Time . | . . . . Parts Recycled . | . . . . Recycled Matter . | . . . . Retrieved Matter . | . . . . Retrieved Components . | . . . . Parts Scanalyzed . | . . . . Part Schematics Acquired . | . . . . Parts Damaged . | . . . . Bothacking | -11 -10 -10 -10 ------------ Run | Scr Mat Min Exi Used RIF Installer . | . . . . Robots Hacked . | . . . . Non-combat . | . . . . Combat . | . . . . Robot Hacks Applied . | . . . . Relay Couplers Released . | . . . . Robots Rewired . | . . . . Allies Hacked . | . . . . Hacks Repelled . | . . . . Allies | -11 -10 -10 -10 -------- Run | Scr Mat Min Exi Total Allies . | . . . . Largest Group . | . . . . Highest-Rated Group . | . . . . Highest-Rated Ally . | . . . . Total Orders . | . . . . Ally Attacks . | . . . . Total Damage . | . . . . Kills . | . . . . Allies Corrupted . | . . . . Allies Melted . | . . . . Intel | -11 -10 -10 -10 ------- Run | Scr Mat Min Exi Robot Analysis Total . | . . . . Derelict Logs Recovered . | . . . . Drone Launches . | . . . . Drone Recoveries . | . . . . Exploration | -11 -10 -10 -10 ------------- Run | Scr Mat Min Exi Turns Passed 1753 | 29 745 296 683 Spaces Moved 923 | 18 372 170 363 Core 1 | . . . 1 Treads . | . . . . Legs 59 | . 59 . . Wheels 863 | 18 313 170 362 Hover . | . . . . Flight . | . . . . Fastest Speed 80 | 80 80 110 80 Average Speed 155 | 80 139 133 185 Slowest Speed 3500 | 80 280 140 3500 Overloaded Moves . | . . . . Propulsion Burnouts . | . . . . Robots Hopped . | . . . . Cave-ins Triggered . | . . . . Exploration Rate (%) 42 | 3 53 42 70 Regions Visited 3 Branch Regions 2 Pre-discovered Areas 1 | . . . 1 Known Exits Taken . | . . . . Unknown Exits Taken 3 | 1 1 1 . Scrap Searched . | . . . . Spaces Dug . | . . . . Terrain Destroyed . | . . . . Melee . | . . . . Projectile . | . . . . AOE . | . . . . Terrain Rammed . | . . . . Walls Destroyed . | . . . . Machines Disabled . | . . . . Actions | -11 -10 -10 -10 --------- Run | Scr Mat Min Exi Total 1109 | 25 486 199 399 Wait 15 | . 12 2 1 Move 920 | 17 371 169 363 Hop . | . . . . Pick Up 50 | 2 21 2 25 Fast Attach 11 | . 8 . 3 Attach 8 | . 3 5 . Detach . | . . . . Swap 8 | 2 6 . . Drop 16 | 1 9 . 6 Fire 80 | 3 55 21 1 Melee . | . . . . Ram . | . . . . Kick 1 | . 1 . . Crush . | . . . . Escape Stasis . | . . . . Rewire . | . . . . Trap . | . . . . Miscellaneous . | . . . . Route ------- -11/Scrapyard -10/Materials -10/Mines (discovered 2 exits: [*Mat] / *Exi) -10/Exiles (discovered 2 exits: [*Min x2]) History --------- Turn | Location | Event 7 | -11/Scrapyard | Discovered new exit (range 3) 30 | -11/Scrapyard | Entered Materials 323 | -10/Materials | Build established: Mutant 590 | -10/Materials | Discovered new exit (range 8) 655 | -10/Materials | Core integrity fell below 50% 775 | -10/Materials | Entered Mines 826 | -10/Mines | Lost 5 parts (1p2n2w) 846 | -10/Mines | Discovered new exit (range 5) 880 | -10/Mines | Core integrity fell below 20% 1065 | -10/Mines | Deemed a non-threat by the Exiles lab entrance 1065 | -10/Mines | Discovered new exit (range 5) 1071 | -10/Mines | Entered Exiles 1092 | -10/Exiles | Discovered new exit (range 15) 1109 | -10/Exiles | Met 8R-AWN 1130 | -10/Exiles | Met EX-HEX 1169 | -10/Exiles | Met EX-BIN 1186 | -10/Exiles | Aligned with FarCom system 1188 | -10/Exiles | Given EX-Vault access code 1223 | -10/Exiles | Opened EX-Vault 1232 | -10/Exiles | Found Prototype Storage 1232 | -10/Exiles | Identified Superbattery 1241 | -10/Exiles | Found Potential Leg 1243 | -10/Exiles | Found Potential Leg 1251 | -10/Exiles | Found Deploy-a-Sentry 1253 | -10/Exiles | Found Deploy-a-Sentry 1255 | -10/Exiles | Found Deploy-a-Sentry 1291 | -10/Exiles | Warned to stay clear of 0b10 Research branches 1333 | -10/Exiles | Met EX-DEC 1339 | -10/Exiles | Learned location of Zion (-6) 1480 | -10/Exiles | Discovered new exit (range 10) 1745 | -10/Exiles | Attacked by the Exiles 1754 | -10/Exiles | Destroyed by DAS Turret with DAS Cannon Last Messages --------------- 01530_ Acquired Med. Storage Unit. 01535_ Acquired Deploy-a-Sentry. 01539_ Acquired Disposable Heat Sink. 01544_ Acquired Deploy-a-Sentry. 01554_ Acquired Particle Cannon. 01559_ Acquired Signal Interpreter. 01563_ Acquired Med. Laser. 01568_ Acquired Hcp. Storage Unit. 01573_ Acquired Med. Laser. 01578_ Acquired Lgt. Assault Rifle. 01583_ Acquired Imp. Heat Sink. 01587_ Acquired Particle Cannon. 01592_ Acquired Hacking Suite. 01597_ Acquired Disposable Heat Sink. 01745_ EXILES: Hostile robot within lab perimeter. Defensive protocols time, folks! 01747_ EX-DEC deploys DAS Turret. 01747_ Wheel destroyed. 01747_ Knocked back. 01752_ Machine disabled. Map ----- +----------------------------------------------------+ | #????????????" """#???????## """"?????? | | #????????????" #????????# """#?????? | | ????????????"" #????????#" "X" """"?????? | | ????????????"" "#????????#" """ #?????? | | ???????????? ""?????????#" """""""""#?????? | | ##???????????" "?????????##" ###########?????? | | ##??????????# #????????##"" #???????????????? | | ######???### ###?######"" #???????????????? | | """#####X# #"###""""""" ##??????????????? | | """""" " "" ##???########### | | "" """ " #####"""""""""# | | " " " """ """" | | # "" " | | ### " "" | | ??## " | | ???## " | | ????##" | | ?????#""" """""" | | ????##" ######""" | | ????#"" ""##????#####""" | | ????#""" """##?????????##""" | | ???#""" """##???????????#"""" | | ???#""" ""#????????????#"" | | ???#"" ########???###"""" | | ???#""" z ##aaa####" " | | ???#"" @% """" | | ???##"" t %% | | ????#"""" a | | ????## " | | ?????#" "" """ | | ?????#"""" ""## ##""" " " ""#" | | ?????#"" ""#### #??###???????##"""" | | ??????" """"##??# #?????????????##### | | ??????""" """#??## ####??????????????? | | ?????## ""##??#! "!#??????????????? | | ??????#"" """##???#" !#??????????????? | | ???????#""" c ##????#" [["#??????????????? | | ????????#"""" ##?????#!!"" "#??????????????? | | ?????????## #??????########??????????????? | | ???????????#### ##????????????????????????????? | | ??????????????## ??????????????????????????????? | | ???????????????# ??????????????????????????????? | | ???????????????# ??????????????????????????????? | | ????????????????? ???????????????????????????????? | | ?????????????????????????????????????????????????? | | ?????????????????????????????????????????????????? | | ?????????????????????????????????????????????????? | | ?????????????????????????????????????????????????? | | ?????????????????????????????????????????????????? | | ?????????????????????????????????????????????????? | +----------------------------------------------------+ Best States ------------- Heat Dissipation 25 Coolant Potential 50 Energy Generation 10 Energy Capacity 125 Matter Stores 300 Matter Capacity 300 Sight Range 16 Terrain Scan Density 10 Evasion (%) 44 Item Schematics ----------------- None Robot Schematics ------------------ None Fabricated ------------ Nothing Alien Tech Used ----------------- None Achievements -------------- None Challenges ------------ None Game ------ Seed DimensionalSpliceRedirector Manual? 0 Play Time 00:16:39 Cumulative 216.3 hours Start 2021.07.07 @ 21:34:19 End 2021.07.07 @ 21:47:27 Sessions 1 Manual Loads 0 Difficulty Rogue Special Mode None Game No. 127 Rogue 127 Adventurer 0 Explorer 0 Win Type - Total 3 Types 2/0/0/1/0/0/0/0/0 Lore% 64 Gallery% 75 Achievement% 52 Wizard Run 0 Options --------- ASCII 0 Keyboard 0 Movement Numpad Keybinds 0 Fullscreen 1 Font 18/SmallcapsGlow Map View 76x50 Tactical HUD 1 Map Filters NONE Filters NONE Steam 1 RUN: 7a8015d0-26aa-4f58-8095-2500e8d75d2a